[Event "*** Biggest EVER Titled Tuesday"]
[Site "Chess.com"]
[Date "2018.04.17"]
[Round "4"]
[White "savinspm"]
[Black "David_Paravyan"]
[Result "0-1"]
[WhiteElo "2024"]
[BlackElo "2668"]
[TimeControl "180+2"]
[EndTime "13:48:55 PDT"]
[Termination "David_Paravyan won by resignation"]

1. e4 {[%clk 0:03:00.6]} 1... e5 {[%clk 0:03:00.5]} 2. Nf3 {[%clk 0:03:01.2]}
2... Nc6 {[%clk 0:03:01.7]} 3. Bb5 {[%clk 0:03:02.2]} 3... a6 {[%clk 0:02:59.4]}
4. Bxc6 {[%clk 0:03:03.2]} 4... dxc6 {[%clk 0:02:59]} 5. d4 {[%clk 0:03:04.8]}
5... exd4 {[%clk 0:02:58.8]} 6. Qxd4 {[%clk 0:03:06.7]} 6... Qxd4 {[%clk
0:02:59.1]} 7. Nxd4 {[%clk 0:03:08.6]} 7... Nf6 {[%clk 0:02:59.6]} 8. f3 {[%clk
0:03:09.2]} 8... c5 {[%clk 0:03:00.1]} 9. Ne2 {[%clk 0:03:09.3]} 9... Bd7 {[%clk
0:02:53.5]} 10. Be3 {[%clk 0:03:08.4]} 10... O-O-O {[%clk 0:02:54]} 11. Nd2
{[%clk 0:03:09.5]} 11... Bd6 {[%clk 0:02:47.8]} 12. O-O-O {[%clk 0:03:10.3]}
12... Rhe8 {[%clk 0:02:42]} 13. Rde1 {[%clk 0:02:55.5]} 13... Nd5 {[%clk
0:02:37.9]} 14. exd5 {[%clk 0:02:50.3]} 14... Rxe3 {[%clk 0:02:29.5]} 15. Nc4
{[%clk 0:02:51.4]} 15... Re7 {[%clk 0:02:28.5]} 16. Nxd6+ {[%clk 0:02:51.7]}
16... cxd6 {[%clk 0:02:30.2]} 17. Nf4 {[%clk 0:02:49.7]} 17... Rde8 {[%clk
0:02:30.6]} 18. Kd2 {[%clk 0:02:50.6]} 18... g5 {[%clk 0:02:19.3]} 19. Nh5
{[%clk 0:02:44.5]} 19... Bf5 {[%clk 0:02:20.5]} 20. Nf6 {[%clk 0:02:39.4]} 20...
Rxe1 {[%clk 0:02:19.8]} 21. Rxe1 {[%clk 0:02:37.9]} 21... Rxe1 {[%clk
0:02:21.1]} 22. Kxe1 {[%clk 0:02:39.5]} 22... Bxc2 {[%clk 0:02:21.5]} 23. Kd2
{[%clk 0:02:40.4]} 23... Bg6 {[%clk 0:02:22.1]} 24. Ng4 {[%clk 0:02:27.6]} 24...
b5 {[%clk 0:02:22.3]} 25. Ke3 {[%clk 0:02:27.3]} 25... a5 {[%clk 0:02:21.6]} 26.
f4 {[%clk 0:02:28]} 26... gxf4+ {[%clk 0:02:22.2]} 27. Kxf4 {[%clk 0:02:29.2]}
27... b4 {[%clk 0:02:23]} 28. Ne3 {[%clk 0:02:29.5]} 28... Kc7 {[%clk
0:02:23.1]} 29. g4 {[%clk 0:02:26.6]} 29... a4 {[%clk 0:02:23.6]} 30. a3 {[%clk
0:02:27.1]} 30... Bd3 {[%clk 0:02:23.5]} 31. g5 {[%clk 0:02:08.3]} 31... c4
{[%clk 0:02:23.3]} 32. axb4 {[%clk 0:02:07.6]} 32... c3 {[%clk 0:02:24.2]} 33.
bxc3 {[%clk 0:02:04.5]} 33... a3 {[%clk 0:02:24.1]} 0-1

[Event "*** Biggest EVER Titled Tuesday"]
[Site "Chess.com"]
[Date "2018.04.17"]
[Round "4"]
[White "GianmarcoVaR"]
[Black "MaxLeto"]
[Result "1-0"]
[WhiteElo "2544"]
[BlackElo "2342"]
[TimeControl "180+2"]
[EndTime "13:49:49 PDT"]
[Termination "GianmarcoVaR won by resignation"]

1. d4 {[%clk 0:03:01.9]} 1... g6 {[%clk 0:02:49.9]} 2. e4 {[%clk 0:03:00.4]}
2... Bg7 {[%clk 0:02:51]} 3. c3 {[%clk 0:03:00.7]} 3... b6 {[%clk 0:02:52.5]} 4.
Bd3 {[%clk 0:03:01.6]} 4... Bb7 {[%clk 0:02:54]} 5. Nf3 {[%clk 0:03:02.9]} 5...
d6 {[%clk 0:02:55.4]} 6. O-O {[%clk 0:03:03.9]} 6... e6 {[%clk 0:02:56.4]} 7.
Nbd2 {[%clk 0:03:04.3]} 7... Nd7 {[%clk 0:02:56.3]} 8. Re1 {[%clk 0:03:05.5]}
8... Ne7 {[%clk 0:02:56.9]} 9. a4 {[%clk 0:02:54.4]} 9... a6 {[%clk 0:02:58.2]}
10. Nc4 {[%clk 0:02:54.8]} 10... h6 {[%clk 0:02:58.8]} 11. Qc2 {[%clk
0:02:54.9]} 11... O-O {[%clk 0:02:53]} 12. b4 {[%clk 0:02:47.2]} 12... d5 {[%clk
0:02:49.8]} 13. exd5 {[%clk 0:02:45.2]} 13... Nxd5 {[%clk 0:02:50]} 14. Rb1
{[%clk 0:02:43.9]} 14... Re8 {[%clk 0:02:43.7]} 15. Bd2 {[%clk 0:02:37.4]} 15...
Rc8 {[%clk 0:02:44]} 16. a5 {[%clk 0:02:33.8]} 16... N7f6 {[%clk 0:01:53.3]} 17.
Nce5 {[%clk 0:02:30.8]} 17... Nh5 {[%clk 0:01:47.6]} 18. Nxf7 {[%clk 0:02:29.5]}
18... Qf6 {[%clk 0:01:14.3]} 19. Nxh6+ {[%clk 0:02:14.1]} 19... Bxh6 {[%clk
0:00:50.6]} 20. Bxh6 {[%clk 0:02:15]} 20... Nhf4 {[%clk 0:00:51.3]} 21. Be4
{[%clk 0:02:08.4]} 21... b5 {[%clk 0:00:36.9]} 22. Bxf4 {[%clk 0:02:08]} 22...
Qxf4 {[%clk 0:00:35.8]} 23. Bxd5 {[%clk 0:02:08.7]} 1-0

[Event "*** Biggest EVER Titled Tuesday"]
[Site "Chess.com"]
[Date "2018.04.17"]
[Round "4"]
[White "champ2005"]
[Black "SenseiJulio"]
[Result "1-0"]
[WhiteElo "2617"]
[BlackElo "2618"]
[TimeControl "180+2"]
[EndTime "13:49:56 PDT"]
[Termination "champ2005 won by checkmate"]

1. e4 {[%clk 0:03:00.8]} 1... e6 {[%clk 0:02:49.7]} 2. d4 {[%clk 0:03:01.2]}
2... d5 {[%clk 0:02:48.7]} 3. Nc3 {[%clk 0:02:59.2]} 3... Nf6 {[%clk 0:02:45.5]}
4. Bg5 {[%clk 0:02:59]} 4... dxe4 {[%clk 0:02:45]} 5. Nxe4 {[%clk 0:02:59.6]}
5... Be7 {[%clk 0:02:46.5]} 6. Bxf6 {[%clk 0:03:00.1]} 6... gxf6 {[%clk
0:02:47.6]} 7. Nf3 {[%clk 0:03:01.3]} 7... f5 {[%clk 0:02:49]} 8. Nc3 {[%clk
0:03:02.1]} 8... a6 {[%clk 0:02:49.6]} 9. g3 {[%clk 0:03:02.8]} 9... b5 {[%clk
0:02:47.9]} 10. Bg2 {[%clk 0:03:03.8]} 10... Bb7 {[%clk 0:02:48.9]} 11. O-O
{[%clk 0:03:04.8]} 11... c5 {[%clk 0:02:49.6]} 12. d5 {[%clk 0:03:05.8]} 12...
b4 {[%clk 0:02:47.7]} 13. dxe6 {[%clk 0:03:06.6]} 13... bxc3 {[%clk 0:02:46.5]}
14. exf7+ {[%clk 0:03:07.7]} 14... Kf8 {[%clk 0:02:37.3]} 15. Qe2 {[%clk
0:03:08.5]} 15... Be4 {[%clk 0:02:09.7]} 16. bxc3 {[%clk 0:03:02.7]} 16... Nd7
{[%clk 0:02:02.8]} 17. Rad1 {[%clk 0:03:02.5]} 17... Qc7 {[%clk 0:02:00.2]} 18.
Rfe1 {[%clk 0:03:02.8]} 18... Bf6 {[%clk 0:01:49.1]} 19. Qd2 {[%clk 0:02:43]}
19... Rd8 {[%clk 0:01:36.9]} 20. Ng5 {[%clk 0:02:06]} 20... Bxg5 {[%clk
0:01:10.8]} 21. Qxg5 {[%clk 0:02:06.2]} 21... h6 {[%clk 0:01:00.4]} 22. Qh4
{[%clk 0:01:55.1]} 22... Bxg2 {[%clk 0:00:48.6]} 23. Qe7+ {[%clk 0:01:54.7]}
23... Kg7 {[%clk 0:00:48.5]} 24. f8=Q+ {[%clk 0:01:55.7]} 24... Kg6 {[%clk
0:00:49.9]} 25. Qff7# {[%clk 0:01:53.5]} 1-0

[Event "*** Biggest EVER Titled Tuesday"]
[Site "Chess.com"]
[Date "2018.04.17"]
[Round "4"]
[White "KRASAVCHIK2002"]
[Black "BillForster"]
[Result "1-0"]
[WhiteElo "1991"]
[BlackElo "1614"]
[TimeControl "180+2"]
[EndTime "13:50:20 PDT"]
[Termination "KRASAVCHIK2002 won by resignation"]

1. h4 {[%clk 0:02:44.4]} 1... d5 {[%clk 0:02:58.7]} 2. h5 {[%clk 0:02:42.1]}
2... e5 {[%clk 0:02:55.1]} 3. b3 {[%clk 0:02:35.3]} 3... Bd6 {[%clk 0:02:49.1]}
4. Bb2 {[%clk 0:02:36.8]} 4... Nf6 {[%clk 0:02:46.3]} 5. Nf3 {[%clk 0:02:38.2]}
5... Nbd7 {[%clk 0:02:42]} 6. h6 {[%clk 0:02:39.3]} 6... g6 {[%clk 0:02:39.4]}
7. d3 {[%clk 0:02:38.1]} 7... c6 {[%clk 0:02:38.2]} 8. Nbd2 {[%clk 0:02:38.9]}
8... Qc7 {[%clk 0:02:35.7]} 9. e4 {[%clk 0:02:39.7]} 9... d4 {[%clk 0:02:27.7]}
10. c3 {[%clk 0:02:37.1]} 10... dxc3 {[%clk 0:02:01.7]} 11. Bxc3 {[%clk
0:02:39]} 11... b6 {[%clk 0:01:48.1]} 12. Nc4 {[%clk 0:02:34.3]} 12... Bb7
{[%clk 0:01:40.2]} 13. Qc2 {[%clk 0:02:23.9]} 13... Bc5 {[%clk 0:01:33.8]} 14.
O-O-O {[%clk 0:02:23.3]} 14... O-O-O {[%clk 0:01:24.3]} 15. Ncxe5 {[%clk
0:02:23]} 15... Nxe5 {[%clk 0:01:05.6]} 16. Bxe5 {[%clk 0:02:23.6]} 16... Qe7
{[%clk 0:01:06.5]} 17. Qc3 {[%clk 0:02:21.1]} 17... Ng4 {[%clk 0:00:37.6]} 18.
Bxh8 {[%clk 0:02:14.7]} 18... Nxf2 {[%clk 0:00:34.4]} 19. Be2 {[%clk 0:02:15.9]}
19... Nxh1 {[%clk 0:00:27.9]} 20. Rxh1 {[%clk 0:02:17.2]} 20... Be3+ {[%clk
0:00:25.2]} 21. Kb1 {[%clk 0:02:14.9]} 21... Qa3 {[%clk 0:00:19.1]} 22. Qb2
{[%clk 0:02:13.3]} 22... Qb4 {[%clk 0:00:14.6]} 23. Bf6 {[%clk 0:02:09.1]} 23...
Rd7 {[%clk 0:00:13.3]} 24. Ne5 {[%clk 0:02:09.3]} 1-0

[Event "*** Biggest EVER Titled Tuesday"]
[Site "Chess.com"]
[Date "2018.04.17"]
[Round "4"]
[White "Sam_ChessMood"]
[Black "NIGWAPO"]
[Result "1-0"]
[WhiteElo "2629"]
[BlackElo "2501"]
[TimeControl "180+2"]
[EndTime "13:50:27 PDT"]
[Termination "Sam_ChessMood won by checkmate"]

1. e4 {[%clk 0:03:01.9]} 1... g5 {[%clk 0:02:59.9]} 2. d4 {[%clk 0:03:01.7]}
2... d5 {[%clk 0:03:00.8]} 3. e5 {[%clk 0:03:01]} 3... f6 {[%clk 0:03:01.8]} 4.
Qh5+ {[%clk 0:02:58.3]} 4... Kd7 {[%clk 0:02:58.7]} 5. h4 {[%clk 0:02:51.9]}
5... gxh4 {[%clk 0:02:58]} 6. Nc3 {[%clk 0:02:48.3]} 6... c6 {[%clk 0:02:58.2]}
7. Nf3 {[%clk 0:02:48.9]} 7... b6 {[%clk 0:02:53.9]} 8. Bf4 {[%clk 0:02:48.7]}
8... Kc7 {[%clk 0:02:49.7]} 9. exf6+ {[%clk 0:02:19.9]} 9... Kb7 {[%clk
0:02:50.1]} 10. fxe7 {[%clk 0:02:20.2]} 10... Qxe7+ {[%clk 0:02:47.5]} 11. Qe5
{[%clk 0:02:20.2]} 11... Bg7 {[%clk 0:02:35.6]} 12. Qe3 {[%clk 0:02:06.7]} 12...
Bf5 {[%clk 0:02:29.5]} 13. O-O-O {[%clk 0:02:06.6]} 13... Qxe3+ {[%clk
0:02:19.9]} 14. fxe3 {[%clk 0:02:07.4]} 14... Nf6 {[%clk 0:02:16.4]} 15. Nxh4
{[%clk 0:02:06.4]} 15... Bg4 {[%clk 0:02:16.8]} 16. Be2 {[%clk 0:02:04.8]} 16...
Bxe2 {[%clk 0:02:15.5]} 17. Nxe2 {[%clk 0:02:05.8]} 17... Ne4 {[%clk 0:02:15.6]}
18. Nf5 {[%clk 0:02:05.5]} 18... Bf6 {[%clk 0:02:15.9]} 19. Rdf1 {[%clk
0:01:34.9]} 19... Nd7 {[%clk 0:02:14.9]} 20. Neg3 {[%clk 0:01:29.6]} 20... Nxg3
{[%clk 0:02:15.1]} 21. Nd6+ {[%clk 0:01:29.9]} 21... Ka6 {[%clk 0:02:14.9]} 22.
Bxg3 {[%clk 0:01:30.9]} 22... h5 {[%clk 0:02:05.9]} 23. Kd2 {[%clk 0:01:08.3]}
23... Rag8 {[%clk 0:02:03.2]} 24. Rf3 {[%clk 0:00:46.6]} 24... h4 {[%clk
0:02:03.2]} 25. Bf2 {[%clk 0:00:46.1]} 25... Rxg2 {[%clk 0:02:03]} 26. Ke2
{[%clk 0:00:47.3]} 26... Rh7 {[%clk 0:01:39.5]} 27. e4 {[%clk 0:00:47.7]} 27...
Bxd4 {[%clk 0:01:36.8]} 28. Ra3# {[%clk 0:00:47.7]} 1-0

[Event "*** Biggest EVER Titled Tuesday"]
[Site "Chess.com"]
[Date "2018.04.17"]
[Round "4"]
[White "hilary444"]
[Black "wonderfultime"]
[Result "0-1"]
[WhiteElo "2524"]
[BlackElo "2785"]
[TimeControl "180+2"]
[EndTime "13:50:31 PDT"]
[Termination "wonderfultime won by checkmate"]

1. e4 {[%clk 0:03:01.9]} 1... c5 {[%clk 0:03:00.6]} 2. Nf3 {[%clk 0:03:02.7]}
2... d6 {[%clk 0:03:02.1]} 3. d4 {[%clk 0:03:04]} 3... cxd4 {[%clk 0:03:04]} 4.
Nxd4 {[%clk 0:03:05.9]} 4... Nf6 {[%clk 0:03:05.4]} 5. Nc3 {[%clk 0:03:07.3]}
5... g6 {[%clk 0:03:06]} 6. Be3 {[%clk 0:03:08]} 6... Bg7 {[%clk 0:03:07.6]} 7.
f3 {[%clk 0:03:09.2]} 7... O-O {[%clk 0:03:09.1]} 8. Qd2 {[%clk 0:03:10.5]} 8...
Nc6 {[%clk 0:03:10.7]} 9. Bc4 {[%clk 0:03:11.3]} 9... Bd7 {[%clk 0:03:11.8]} 10.
O-O-O {[%clk 0:03:12.4]} 10... Rb8 {[%clk 0:03:13.3]} 11. Kb1 {[%clk 0:03:04.7]}
11... Na5 {[%clk 0:03:11.7]} 12. Be2 {[%clk 0:03:02.2]} 12... a6 {[%clk
0:02:57.5]} 13. g4 {[%clk 0:02:55.5]} 13... b5 {[%clk 0:02:51.6]} 14. h4 {[%clk
0:02:54.8]} 14... Qc7 {[%clk 0:02:29.1]} 15. h5 {[%clk 0:02:46.1]} 15... Rfc8
{[%clk 0:02:20]} 16. hxg6 {[%clk 0:02:40.1]} 16... fxg6 {[%clk 0:02:19.4]} 17.
g5 {[%clk 0:02:31.1]} 17... b4 {[%clk 0:02:11]} 18. Nd5 {[%clk 0:02:01.7]} 18...
Nxd5 {[%clk 0:02:10.3]} 19. exd5 {[%clk 0:02:03.6]} 19... Qc3 {[%clk 0:02:07.7]}
20. Bxa6 {[%clk 0:01:21.1]} 20... Rc5 {[%clk 0:02:00.5]} 21. Qxc3 {[%clk
0:01:08.2]} 21... bxc3 {[%clk 0:02:00.7]} 22. Nb3 {[%clk 0:01:09.5]} 22... Nxb3
{[%clk 0:02:01.3]} 23. axb3 {[%clk 0:00:30.2]} 23... Ra5 {[%clk 0:02:00.4]} 24.
Bc4 {[%clk 0:00:25.9]} 24... Rba8 {[%clk 0:01:56.7]} 25. bxc3 {[%clk 0:00:18.4]}
25... Ra1+ {[%clk 0:01:56.5]} 26. Kb2 {[%clk 0:00:18.6]} 26... R8a2# {[%clk
0:01:58.4]} 0-1

[Event "*** Biggest EVER Titled Tuesday"]
[Site "Chess.com"]
[Date "2018.04.17"]
[Round "4"]
[White "xavielhumilde_1999"]
[Black "2165149677570"]
[Result "1-0"]
[WhiteElo "2218"]
[BlackElo "2138"]
[TimeControl "180+2"]
[EndTime "13:50:51 PDT"]
[Termination "xavielhumilde_1999 won by resignation"]

1. e4 {[%clk 0:03:01.9]} 1... c5 {[%clk 0:03:00.8]} 2. Nf3 {[%clk 0:02:57.6]}
2... d6 {[%clk 0:03:02]} 3. d4 {[%clk 0:02:55.7]} 3... cxd4 {[%clk 0:03:03.9]}
4. Nxd4 {[%clk 0:02:56.4]} 4... Nf6 {[%clk 0:03:05.4]} 5. Nc3 {[%clk 0:02:57.3]}
5... a6 {[%clk 0:03:06.4]} 6. f3 {[%clk 0:02:58.5]} 6... e5 {[%clk 0:03:05.3]}
7. Nb3 {[%clk 0:02:59]} 7... Be6 {[%clk 0:03:06.8]} 8. Be3 {[%clk 0:02:59.9]}
8... Nbd7 {[%clk 0:03:07.7]} 9. Qd2 {[%clk 0:03:00.5]} 9... Be7 {[%clk
0:03:08.5]} 10. O-O-O {[%clk 0:03:00.2]} 10... b5 {[%clk 0:03:10]} 11. g4 {[%clk
0:03:00.8]} 11... b4 {[%clk 0:02:55]} 12. Nd5 {[%clk 0:02:50.3]} 12... Bxd5
{[%clk 0:02:52.2]} 13. exd5 {[%clk 0:02:51.7]} 13... Nb6 {[%clk 0:02:53.8]} 14.
Qxb4 {[%clk 0:02:45.1]} 14... Nbxd5 {[%clk 0:02:48.8]} 15. Qa4+ {[%clk
0:02:44.9]} 15... Qd7 {[%clk 0:02:42.9]} 16. Qxd7+ {[%clk 0:02:44]} 16... Kxd7
{[%clk 0:02:44.8]} 17. Bd2 {[%clk 0:02:40.7]} 17... Nc7 {[%clk 0:02:33.3]} 18.
g5 {[%clk 0:02:38.8]} 18... Nfd5 {[%clk 0:02:24.4]} 19. c4 {[%clk 0:02:38.5]}
19... Nb6 {[%clk 0:02:19.1]} 20. c5 {[%clk 0:02:38]} 20... dxc5 {[%clk
0:02:15.5]} 21. Bc3+ {[%clk 0:02:04.1]} 21... Kc6 {[%clk 0:02:11.3]} 22. Bxe5
{[%clk 0:02:04.2]} 22... Bxg5+ {[%clk 0:02:12]} 23. f4 {[%clk 0:02:04.2]} 23...
Bf6 {[%clk 0:01:58.7]} 24. Bxc7 {[%clk 0:02:01.7]} 24... Kxc7 {[%clk 0:01:57.1]}
25. Nxc5 {[%clk 0:02:02.7]} 25... Rac8 {[%clk 0:01:39.5]} 26. Kb1 {[%clk
0:01:58]} 26... Kb8 {[%clk 0:01:31.4]} 27. Nxa6+ {[%clk 0:01:34.5]} 27... Kb7
{[%clk 0:01:32.6]} 28. Nb4 {[%clk 0:01:33]} 28... Na4 {[%clk 0:01:16.7]} 29.
Ba6+ {[%clk 0:01:28.8]} 29... Kb6 {[%clk 0:01:14.7]} 30. Bxc8 {[%clk 0:01:28.2]}
30... Rxc8 {[%clk 0:01:16.6]} 31. Nd5+ {[%clk 0:01:29.1]} 31... Ka5 {[%clk
0:01:10.9]} 32. Nxf6 {[%clk 0:01:28.7]} 32... gxf6 {[%clk 0:01:12.8]} 33. Rd5+
{[%clk 0:01:27.1]} 33... Kb4 {[%clk 0:01:13]} 34. Rhd1 {[%clk 0:01:28.2]} 34...
Nc5 {[%clk 0:01:06.9]} 35. R1d4+ {[%clk 0:01:25.8]} 35... Kb5 {[%clk 0:01:08.2]}
36. b4 {[%clk 0:01:25.5]} 1-0

[Event "*** Biggest EVER Titled Tuesday"]
[Site "Chess.com"]
[Date "2018.04.17"]
[Round "4"]
[White "KenanGarayev"]
[Black "gkchesstiger"]
[Result "1-0"]
[WhiteElo "2562"]
[BlackElo "2791"]
[TimeControl "180+2"]
[EndTime "13:50:52 PDT"]
[Termination "KenanGarayev won by resignation"]

1. d4 {[%clk 0:03:01.9]} 1... d5 {[%clk 0:03:00.1]} 2. c4 {[%clk 0:03:01]} 2...
c6 {[%clk 0:03:01.4]} 3. Nc3 {[%clk 0:03:00]} 3... Nf6 {[%clk 0:03:02.1]} 4. e3
{[%clk 0:03:00.2]} 4... g6 {[%clk 0:03:01.9]} 5. Nf3 {[%clk 0:02:59.1]} 5... Bg7
{[%clk 0:03:03.1]} 6. Be2 {[%clk 0:02:54.8]} 6... O-O {[%clk 0:03:04]} 7. O-O
{[%clk 0:02:55]} 7... Qb6 {[%clk 0:03:05.1]} 8. b3 {[%clk 0:02:49.5]} 8... Bg4
{[%clk 0:03:04]} 9. h3 {[%clk 0:02:45.5]} 9... Bxf3 {[%clk 0:03:04.7]} 10. Bxf3
{[%clk 0:02:47.4]} 10... e6 {[%clk 0:03:05.8]} 11. Qc2 {[%clk 0:02:41.2]} 11...
Rd8 {[%clk 0:03:06]} 12. Bb2 {[%clk 0:02:40.3]} 12... a5 {[%clk 0:03:07]} 13.
Rad1 {[%clk 0:02:37.1]} 13... Nbd7 {[%clk 0:03:06.4]} 14. e4 {[%clk 0:02:34.1]}
14... dxe4 {[%clk 0:03:06.7]} 15. Nxe4 {[%clk 0:02:36]} 15... Nxe4 {[%clk
0:03:07.4]} 16. Qxe4 {[%clk 0:02:30.5]} 16... Nf6 {[%clk 0:03:07.7]} 17. Qe3
{[%clk 0:02:27.2]} 17... Ne8 {[%clk 0:03:07.3]} 18. Rd3 {[%clk 0:02:21.3]} 18...
Qa7 {[%clk 0:03:08.1]} 19. Rfd1 {[%clk 0:02:10.8]} 19... a4 {[%clk 0:03:08]} 20.
Bc1 {[%clk 0:02:06.4]} 20... axb3 {[%clk 0:03:08.5]} 21. axb3 {[%clk 0:02:07.4]}
21... Nd6 {[%clk 0:03:09.5]} 22. d5 {[%clk 0:02:03.5]} 22... exd5 {[%clk
0:03:03.9]} 23. Qxa7 {[%clk 0:02:01.6]} 23... Rxa7 {[%clk 0:03:04.5]} 24. cxd5
{[%clk 0:02:00.9]} 24... c5 {[%clk 0:03:05.8]} 25. Be3 {[%clk 0:02:01.3]} 25...
b6 {[%clk 0:03:06.5]} 26. b4 {[%clk 0:02:02.8]} 26... Rc7 {[%clk 0:03:06.2]} 27.
bxc5 {[%clk 0:01:58.9]} 27... bxc5 {[%clk 0:03:07]} 28. Rc1 {[%clk 0:02:00.4]}
28... c4 {[%clk 0:03:07.1]} 29. Bb6 {[%clk 0:02:00.5]} 29... Rb7 {[%clk
0:02:52.8]} 30. Bxd8 {[%clk 0:02:01.6]} 30... cxd3 {[%clk 0:02:53.8]} 31. Bg5
{[%clk 0:02:00.2]} 31... Be5 {[%clk 0:02:50.2]} 32. g3 {[%clk 0:01:58.2]} 32...
Kg7 {[%clk 0:02:50.1]} 33. Rd1 {[%clk 0:01:53.5]} 33... Rb3 {[%clk 0:02:50.8]}
34. Bg2 {[%clk 0:01:51.5]} 34... Nc4 {[%clk 0:02:48.8]} 35. Bf1 {[%clk
0:01:44.4]} 35... Nb2 {[%clk 0:02:49.2]} 36. Rb1 {[%clk 0:01:44.3]} 36... Bd4
{[%clk 0:02:31.9]} 37. d6 {[%clk 0:01:38.4]} 37... Rb6 {[%clk 0:02:23.8]} 38. d7
{[%clk 0:01:36]} 38... Rd6 {[%clk 0:02:24.8]} 39. d8=Q {[%clk 0:01:35.2]} 39...
Rxd8 {[%clk 0:02:25.3]} 40. Bxd8 {[%clk 0:01:37.1]} 40... d2 {[%clk 0:02:22.2]}
41. Be2 {[%clk 0:01:36.3]} 41... Na4 {[%clk 0:02:18.3]} 42. Ba5 {[%clk
0:01:34.6]} 42... Bc3 {[%clk 0:02:18.4]} 43. Bc7 {[%clk 0:01:25]} 43... Bd4
{[%clk 0:02:12.7]} 44. Rd1 {[%clk 0:01:23.7]} 44... Bc3 {[%clk 0:02:10]} 45. Bf4
{[%clk 0:01:23]} 45... Nb2 {[%clk 0:02:10.9]} 46. Rxd2 {[%clk 0:01:22.6]} 46...
Bxd2 {[%clk 0:02:12.2]} 47. Bxd2 {[%clk 0:01:23.6]} 47... Na4 {[%clk 0:02:13.8]}
48. Be3 {[%clk 0:01:21.3]} 1-0

[Event "*** Biggest EVER Titled Tuesday"]
[Site "Chess.com"]
[Date "2018.04.17"]
[Round "4"]
[White "Orest_Vovk"]
[Black "Grootneus"]
[Result "1-0"]
[WhiteElo "2240"]
[BlackElo "2100"]
[TimeControl "180+2"]
[EndTime "13:51:09 PDT"]
[Termination "Orest_Vovk won by checkmate"]

1. g4 {[%clk 0:02:59.6]} 1... h5 {[%clk 0:02:56.4]} 2. g5 {[%clk 0:03:00.2]}
2... h4 {[%clk 0:02:50.2]} 3. g6 {[%clk 0:02:59.5]} 3... fxg6 {[%clk 0:02:50.1]}
4. Nf3 {[%clk 0:03:00.1]} 4... d6 {[%clk 0:02:42]} 5. d4 {[%clk 0:03:00.9]} 5...
Nf6 {[%clk 0:02:38]} 6. Nc3 {[%clk 0:03:00.1]} 6... Bg4 {[%clk 0:02:31.7]} 7.
Qd3 {[%clk 0:02:58.5]} 7... Bf5 {[%clk 0:02:17.2]} 8. e4 {[%clk 0:02:56]} 8...
Bg4 {[%clk 0:02:18.4]} 9. Rg1 {[%clk 0:02:52.9]} 9... Nc6 {[%clk 0:02:10.7]} 10.
Ng5 {[%clk 0:02:44]} 10... e5 {[%clk 0:02:00.4]} 11. Nd5 {[%clk 0:02:34]} 11...
Bh5 {[%clk 0:01:19.1]} 12. Ne6 {[%clk 0:02:31.3]} 12... Qd7 {[%clk 0:01:17.6]}
13. Nexc7+ {[%clk 0:02:30.7]} 13... Kd8 {[%clk 0:01:17.1]} 14. Nxa8 {[%clk
0:02:31.6]} 14... Nxd5 {[%clk 0:01:10.8]} 15. exd5 {[%clk 0:02:24.3]} 15... Nxd4
{[%clk 0:01:12.1]} 16. Bg5+ {[%clk 0:02:19.5]} 16... Kc8 {[%clk 0:01:11.8]} 17.
Bg2 {[%clk 0:02:11.6]} 17... Kb8 {[%clk 0:00:38.6]} 18. c3 {[%clk 0:01:53.4]}
18... Ne2 {[%clk 0:00:37.3]} 19. Bh3 {[%clk 0:01:46.3]} 19... Qa4 {[%clk
0:00:24.4]} 20. b3 {[%clk 0:01:29.1]} 20... Qa5 {[%clk 0:00:18.4]} 21. Rg4
{[%clk 0:01:24]} 21... Bxg4 {[%clk 0:00:16.5]} 22. Bxg4 {[%clk 0:01:24.3]} 22...
Qxc3+ {[%clk 0:00:12.1]} 23. Qxc3 {[%clk 0:01:24.2]} 23... Nxc3 {[%clk 0:00:14]}
24. Rc1 {[%clk 0:01:24]} 24... Nxd5 {[%clk 0:00:10.6]} 25. Rc8# {[%clk
0:01:23.8]} 1-0

[Event "*** Biggest EVER Titled Tuesday"]
[Site "Chess.com"]
[Date "2018.04.17"]
[Round "4"]
[White "rekosheten"]
[Black "ViktorMatviishen"]
[Result "0-1"]
[WhiteElo "2356"]
[BlackElo "2516"]
[TimeControl "180+2"]
[EndTime "13:51:18 PDT"]
[Termination "ViktorMatviishen won by checkmate"]

1. e4 {[%clk 0:03:01.9]} 1... c5 {[%clk 0:02:56.6]} 2. Nf3 {[%clk 0:03:02.6]}
2... d6 {[%clk 0:02:57]} 3. c3 {[%clk 0:03:03.5]} 3... Nf6 {[%clk 0:02:57.8]} 4.
Bd3 {[%clk 0:03:05]} 4... Nc6 {[%clk 0:02:56.7]} 5. h3 {[%clk 0:03:06.4]} 5...
e5 {[%clk 0:02:57.4]} 6. O-O {[%clk 0:03:01.7]} 6... g6 {[%clk 0:02:57.6]} 7.
Bc2 {[%clk 0:02:59.6]} 7... Bg7 {[%clk 0:02:58.6]} 8. d4 {[%clk 0:03:00.6]} 8...
cxd4 {[%clk 0:02:59.8]} 9. cxd4 {[%clk 0:03:02.5]} 9... O-O {[%clk 0:02:59.8]}
10. d5 {[%clk 0:02:59]} 10... Nb4 {[%clk 0:03:00.5]} 11. Bb3 {[%clk 0:03:00.3]}
11... a5 {[%clk 0:02:55.7]} 12. Nc3 {[%clk 0:02:58.8]} 12... Bd7 {[%clk
0:02:53.6]} 13. Qe2 {[%clk 0:02:35.7]} 13... a4 {[%clk 0:02:43.5]} 14. Bc4
{[%clk 0:02:36.8]} 14... Nh5 {[%clk 0:02:40.5]} 15. a3 {[%clk 0:02:19]} 15...
Na6 {[%clk 0:02:39.8]} 16. Bg5 {[%clk 0:02:20.5]} 16... f6 {[%clk 0:02:34.7]}
17. Be3 {[%clk 0:02:20.6]} 17... f5 {[%clk 0:02:35.7]} 18. exf5 {[%clk
0:02:13.9]} 18... Rxf5 {[%clk 0:02:18.2]} 19. g4 {[%clk 0:02:01.8]} 19... Nf4
{[%clk 0:02:18.8]} 20. Bxf4 {[%clk 0:02:00.6]} 20... Rxf4 {[%clk 0:02:20.7]} 21.
Ne4 {[%clk 0:01:53.8]} 21... h5 {[%clk 0:01:45.9]} 22. Nxd6 {[%clk 0:01:47.8]}
22... Bxg4 {[%clk 0:01:41.6]} 23. Nxb7 {[%clk 0:01:30.8]} 23... Qc8 {[%clk
0:01:19.6]} 24. d6+ {[%clk 0:00:45.4]} 24... Kh8 {[%clk 0:01:17.7]} 25. hxg4
{[%clk 0:00:16.2]} 25... Qxg4+ {[%clk 0:01:17.5]} 26. Kh2 {[%clk 0:00:17.2]}
26... Rxf3 {[%clk 0:01:16.7]} 27. Be6 {[%clk 0:00:14.8]} 27... Rh3# {[%clk
0:01:16.9]} 0-1